bitfinex-derivatives/quotes_BNBF0:USTF0_20250220
["timestamp","ask_amount","ask_price","bid_price","bid_amount"]
[1740012037760,1.09014155,654.56,652.71,0.30641479]
[1740012038668,0.30554409,654.57,652.71,0.30641479]
[1740012039263,1.1326265,655.51,652.71,0.30641479]
[1740012039466,0.30515715,655.4,652.71,0.30641479]
[1740012039668,1.37148479,655.39,652.71,0.30641479]
[1740012039869,0.30520838,655.29,652.71,0.30641479]
[1740012040070,1.37148479,655.28,652.71,0.30641479]
[1740012040269,0.30522235,655.26,652.71,0.30641479]
[1740012040469,1.37148479,655.25,652.71,0.30641479]
[1740012040670,0.30523632,655.23,652.71,0.30641479]
[1740012040870,0.28079592,655.22,652.71,0.30641479]
[1740012041170,0.3052503,655.2,652.71,0.30641479]
[1740012041370,0.28079592,655.19,652.71,0.30641479]
[1740012041574,0.30526428,655.17,652.71,0.30641479]
[1740012041870,0.28079592,655.16,652.71,0.30641479]
[1740012042071,0.30527826,655.14,653.05,1.3565794]
[1740012042268,0.28079592,655.13,653.05,1.3565794]
[1740012042472,0.30529224,655.11,653.07,0.30624588]
[1740012042672,1.0908247,655.1,653.07,0.30624588]
[1740012042867,0.30530622,655.08,653.07,0.30624588]
[1740012043074,1.37162062,655.07,653.07,0.30624588]
[1740012043272,0.3053202,655.05,653.07,0.30624588]
[1740012043473,1.37162062,655.04,653.07,0.30624588]
[1740012043671,1.1326265,655.46,653.07,0.30624588]
[1740012043672,0.30533418,655.02,653.07,0.30624588]
[1740012043873,1.37162062,655.01,653.07,0.30624588]
[1740012044175,0.30534817,654.99,653.07,0.30624588]
[1740012044371,1.0908247,654.98,653.07,0.30624588]
[1740012044567,0.30536215,654.96,653.07,0.30624588]
[1740012044772,1.37173698,654.95,653.07,0.30624588]
[1740012044973,0.30537614,654.93,653.07,0.30624588]
[1740012045173,1.37173698,654.92,653.07,0.30624588]
[1740012045373,0.30539013,654.9,653.07,0.30624588]
[1740012045568,1.37173698,654.89,653.07,0.30624588]
[1740012045768,0.30540412,654.87,653.07,0.30624588]
[1740012045975,1.37173698,654.86,653.07,0.30624588]
[1740012046269,0.30541811,654.84,653.07,0.30624588]
[1740012046468,1.37171402,654.83,653.07,0.30624588]
[1740012046675,1.67714146,654.82,653.07,0.30624588]
[1740012046873,1.67714613,654.81,653.07,0.30624588]
[1740012047175,1.67715079,654.8,653.07,0.30624588]
[1740012047474,1.67715545,654.79,653.07,0.30624588]
[1740012047667,1.67716012,654.78,653.07,0.30624588]
[1740012047871,1.37171598,654.77,653.07,0.30624588]
[1740012048072,1.37171598,654.76,653.07,0.30624588]
[1740012048270,1.67718587,654.75,653.07,0.30624588]
[1740012048469,1.67719054,654.74,653.07,0.30624588]
[1740012048673,1.67719521,654.73,653.07,0.30624588]
[1740012048870,1.67719987,654.72,653.07,0.30624588]
[1740012049070,1.39630346,654.71,653.07,0.30624588]
[1740012049274,1.39630812,654.7,653.07,0.30624588]
[1740012049474,1.1326265,655.46,653.07,0.30624588]
[1740012049475,1.39631279,654.69,653.07,0.30624588]
[1740012049671,1.39631745,654.68,653.07,0.30624588]
[1740012049875,1.39632212,654.67,653.07,0.30624588]
[1740012050075,1.39632679,654.66,653.07,0.30624588]
[1740012050277,1.39633145,654.65,653.07,0.30624588]
[1740012050472,1.0908247,654.64,653.07,0.30624588]
[1740012050678,1.0908247,654.63,653.07,0.30624588]
[1740012050873,1.0908247,654.62,653.07,0.30624588]
[1740012051076,1.0908247,654.61,653.07,0.30624588]
[1740012051277,1.0908247,654.6,653.07,0.30624588]
[1740012051473,1.0908247,654.59,653.07,0.30624588]
[1740012051673,1.0908247,654.58,653.07,0.30624588]
[1740012051873,1.0908247,654.57,653.07,0.30624588]
[1740012052075,1.0908247,654.56,653.07,0.30624588]
[1740012052279,1.0908247,654.55,653.07,0.30624588]
[1740012052480,1.0908247,654.54,653.07,0.30624588]
[1740012052679,1.0908247,654.53,653.07,0.30624588]
[1740012052879,1.0908247,654.52,653.07,0.30624588]
[1740012053075,1.0908247,654.51,653.07,0.30624588]
[1740012053280,1.0908247,654.5,653.07,0.30624588]
[1740012053475,0.30550675,654.65,653.07,0.30624588]
[1740012053476,1.0908247,654.49,653.07,0.30624588]
[1740012053678,1.09144314,654.48,653.07,0.30624588]
[1740012053881,1.09144314,654.47,653.07,0.30624588]
[1740012054078,1.09144314,654.46,653.07,0.30624588]
[1740012054280,0.30550675,654.65,653.07,0.30624588]
[1740012054281,1.09144314,654.45,653.07,0.30624588]
[1740012054481,1.09144314,654.44,653.07,0.30624588]
[1740012054681,1.09144314,654.43,653.07,0.30624588]
[1740012054878,0.30550675,654.65,653.07,0.30624588]
[1740012055184,1.09167052,654.64,653.07,0.30624588]
[1740012055381,1.09167052,654.63,653.07,0.30624588]
[1740012055582,1.09167052,654.62,653.07,0.30624588]
[1740012055786,0.30550675,654.65,653.07,0.30624588]
[1740012055787,1.09167052,654.61,653.07,0.30624588]
[1740012055985,1.09167052,654.6,653.07,0.30624588]
[1740012056182,1.09167052,654.59,653.07,0.30624588]
[1740012056382,1.39720994,654.58,653.07,0.30624588]
[1740012056581,1.39721461,654.57,653.07,0.30624588]
[1740012056785,1.09167052,654.56,653.07,0.30624588]
[1740012056981,1.39790498,654.55,653.07,0.30624588]
[1740012057186,1.39790965,654.54,653.07,0.30624588]
[1740012057487,1.39791432,654.53,653.07,0.30624588]
[1740012057787,1.39791898,654.52,653.07,0.30624588]
[1740012058090,1.39792365,654.51,653.07,0.30624588]
[1740012058280,1.39792832,654.5,653.07,0.30624588]
[1740012058481,1.39793299,654.49,653.07,0.30624588]
[1740012058685,1.09235155,654.48,653.07,0.30624588]
[1740012058887,1.09235155,654.47,653.07,0.30624588]
[1740012059087,1.09235155,654.46,653.07,0.30624588]
[1740012059287,1.09235155,654.45,653.07,0.30624588]
[1740012059488,1.09235155,654.44,653.07,0.30624588]
[1740012059690,1.09235155,654.43,653.07,0.30624588]
[1740012059891,1.09235155,654.42,653.07,0.30624588]
[1740012060090,1.09235155,654.41,653.07,0.30624588]
[1740012060390,1.09235155,654.4,653.07,0.30624588]
[1740012060689,1.09235155,654.39,653.07,0.30624588]
[1740012060892,1.09235155,654.38,653.07,0.30624588]
[1740012061093,1.09298472,654.37,653.07,0.30624588]
[1740012061293,1.09298472,654.36,653.07,0.30624588]
[1740012061595,1.09298472,654.35,653.07,0.30624588]
[1740012061890,1.09298472,654.34,653.07,0.30624588]
[1740012062096,1.09298472,654.33,653.07,0.30624588]
[1740012062394,1.09298472,654.32,653.07,0.30624588]
[1740012062693,1.09298472,654.31,653.07,0.30624588]
[1740012062894,1.09298472,654.3,653.07,0.30624588]
[1740012063095,1.09298472,654.29,653.07,0.30624588]
[1740012063290,1.09298472,654.28,653.07,0.30624588]
[1740012063489,1.09298472,654.27,653.07,0.30624588]
[1740012063695,1.09298472,654.26,653.07,0.30624588]
[1740012063896,1.09298472,654.25,653.07,0.30624588]
[1740012064096,0.30558144,654.49,653.07,0.30624588]
[1740012064297,1.09348149,654.48,653.07,0.30624588]
[1740012064491,1.09348149,654.47,653.07,0.30624588]
[1740012064694,1.09348149,654.46,653.07,0.30624588]
[1740012064994,0.30558144,654.49,653.07,0.30624588]
[1740012064995,1.09348149,654.45,653.07,0.30624588]
[1740012065194,1.09348149,654.44,653.07,0.30624588]
[1740012065394,1.09348149,654.43,653.07,0.30624588]
[1740012065594,1.09348149,654.42,653.07,0.30624588]
[1740012065796,1.1326265,655.19,653.07,0.30624588]
[1740012065999,0.30526428,655.17,653.07,0.30624588]
[1740012066191,1.37413312,655.16,653.07,0.30624588]
[1740012066392,1.37413312,655.15,653.07,0.30624588]
[1740012066594,1.67941138,655.14,653.07,0.30624588]
[1740012066893,1.67941604,655.13,653.07,0.30624588]
[1740012067092,1.37413312,655.12,653.07,0.30624588]
[1740012067294,1.67942536,655.11,653.07,0.30624588]
[1740012067497,1.67943002,655.1,653.07,0.30624588]
[1740012067695,1.39867699,655.09,653.07,0.30624588]
[1740012067896,1.39868165,655.08,653.07,0.30624588]
[1740012068092,1.39868631,655.07,653.07,0.30624588]
[1740012068391,1.09337543,655.06,653.07,0.30624588]
[1740012068591,1.09337543,655.05,653.07,0.30624588]
[1740012068897,0.30531088,655.07,653.07,0.30624588]
[1740012068898,1.09337543,655.04,653.07,0.30624588]
[1740012069096,1.09337543,655.03,653.07,0.30624588]
[1740012069297,1.09337543,655.02,653.07,0.30624588]
[1740012069497,1.39871427,655.01,653.07,0.30624588]
[1740012069699,1.39871894,655.0,653.07,0.30624588]
[1740012069902,1.3987236,654.99,653.07,0.30624588]
[1740012070101,1.39872826,654.98,653.07,0.30624588]
[1740012070297,1.09337543,654.97,653.07,0.30624588]
[1740012070498,1.09337543,654.96,653.07,0.30624588]
[1740012070697,1.09337543,654.95,653.07,0.30624588]
[1740012070900,1.09337543,654.94,653.07,0.30624588]
[1740012071095,1.09337543,654.93,653.07,0.30624588]
[1740012071302,1.09337543,654.92,653.07,0.30624588]
[1740012071497,1.09337543,654.91,653.07,0.30624588]
[1740012071697,1.09337543,654.9,653.07,0.30624588]
[1740012071903,1.09337543,654.89,653.07,0.30624588]
[1740012072102,1.09337543,654.88,653.07,0.30624588]
[1740012072402,1.09337543,654.87,653.07,0.30624588]
[1740012072604,1.09337543,654.86,653.07,0.30624588]
[1740012072903,1.09337543,654.85,653.07,0.30624588]
[1740012073102,1.09337543,654.84,653.07,0.30624588]
[1740012073304,1.09337543,654.83,653.07,0.30624588]
[1740012073507,1.09337543,654.82,653.07,0.30624588]
[1740012073808,1.09337543,654.81,653.07,0.30624588]
[1740012074004,1.09337543,654.8,653.07,0.30624588]
[1740012074305,1.09337543,654.79,653.07,0.30624588]
[1740012074501,1.09337543,654.78,653.07,0.30624588]
[1740012074702,1.09337543,654.77,653.07,0.30624588]
[1740012075009,1.09337543,654.76,653.07,0.30624588]
[1740012075202,1.09234389,654.75,653.07,0.30624588]
[1740012075505,1.09234389,654.74,653.07,0.30624588]
[1740012075706,1.09234389,654.73,653.07,0.30624588]
[1740012075898,1.09234389,654.72,653.07,0.30624588]
[1740012076098,1.09234389,654.71,653.07,0.30624588]
[1740012076305,1.09234389,654.7,653.07,0.30624588]
[1740012076606,1.09234389,654.69,653.07,0.30624588]
[1740012076806,1.09234389,654.68,653.07,0.30624588]
[1740012077008,0.30535283,654.98,653.07,0.30624588]
[1740012077204,1.09127914,654.97,653.07,0.30624588]
[1740012077401,1.09127914,654.96,653.07,0.30624588]
[1740012077601,1.09127914,654.95,653.07,0.30624588]
[1740012077804,1.09127914,654.94,653.07,0.30624588]
[1740012078004,1.09127914,654.93,653.07,0.30624588]
[1740012078306,1.09127914,654.92,653.07,0.30624588]
[1740012078505,1.09127914,654.91,653.07,0.30624588]
[1740012078706,1.09127914,654.9,653.07,0.30624588]
[1740012078902,1.09127914,654.89,653.07,0.30624588]
[1740012079102,1.09127914,654.88,653.07,0.30624588]
[1740012079304,1.09127914,654.87,653.07,0.30624588]
[1740012079508,1.09127914,654.86,653.07,0.30624588]
[1740012079810,1.09127914,654.85,653.07,0.30624588]
[1740012080008,1.09127914,654.84,653.07,0.30624588]
[1740012080208,1.09127914,654.83,653.07,0.30624588]
[1740012080411,1.09127914,654.82,653.07,0.30624588]
[1740012080708,1.09127914,654.81,653.07,0.30624588]
[1740012080912,1.09127914,654.8,653.07,0.30624588]
[1740012081110,1.09127914,654.79,653.07,0.30624588]
[1740012081310,1.09127914,654.78,653.07,0.30624588]
[1740012081511,1.09127914,654.77,653.07,0.30624588]
[1740012081709,1.09127914,654.76,653.07,0.30624588]
[1740012081907,1.09127914,654.75,653.07,0.30624588]
[1740012082104,1.09127914,654.74,653.07,0.30624588]
[1740012082309,1.09127914,654.73,653.07,0.30624588]
[1740012082505,1.09127914,654.72,653.07,0.30624588]
[1740012082810,1.09127914,654.71,653.07,0.30624588]
[1740012083005,1.1326265,655.87,653.07,0.30624588]
[1740012083208,0.30500358,655.73,653.07,0.30624588]
[1740012083407,1.08887198,655.72,653.07,0.30624588]
[1740012083609,1.36957757,655.71,653.07,0.30624588]
[1740012083808,0.30506406,655.6,653.07,0.30624588]
[1740012084008,1.36957757,655.59,653.07,0.30624588]
[1740012084210,0.30511525,655.49,653.07,0.30624588]
[1740012084412,1.36957757,655.48,653.07,0.30624588]
[1740012084707,0.30512922,655.46,653.07,0.30624588]
[1740012084911,1.36957757,655.45,653.07,0.30624588]
[1740012085112,0.30514318,655.43,653.07,0.30624588]
[1740012085311,1.36956668,655.42,653.07,0.30624588]
[1740012085513,0.30515715,655.4,653.07,0.30624588]
[1740012085708,1.36956668,655.39,653.07,0.30624588]
[1740012085912,0.30515715,655.4,653.07,0.30624588]
[1740012085913,0.30517112,655.37,653.07,0.30624588]
[1740012086114,1.36956668,655.36,653.07,0.30624588]
[1740012086314,1.36956668,655.35,653.07,0.30624588]
[1740012086513,1.36956668,655.34,653.07,0.30624588]
[1740012086711,1.36956668,655.33,653.07,0.30624588]
[1740012086916,1.36956668,655.32,653.07,0.30624588]
[1740012087113,0.30520372,655.3,653.07,0.30624588]
[1740012087311,1.36956668,655.29,653.07,0.30624588]
[1740012087513,1.67477971,655.28,653.07,0.30624588]
[1740012087709,1.67478437,655.27,653.07,0.30624588]
[1740012088016,1.67478903,655.26,653.07,0.30624588]
[1740012088212,0.74328789,655.84,653.07,0.30624588]
[1740012088213,1.67479369,655.25,653.07,0.30624588]
[1740012088412,1.67479835,655.24,653.07,0.30624588]
[1740012088610,1.674803,655.23,653.07,0.30624588]
[1740012088918,1.67480766,655.22,653.07,0.30624588]
[1740012089117,1.67481232,655.21,653.07,0.30624588]
[1740012089316,1.67481698,655.2,653.07,0.30624588]
[1740012089511,1.67482164,655.19,653.07,0.30624588]
[1740012089713,1.36956668,655.18,653.07,0.30624588]
[1740012089914,1.36956668,655.17,653.07,0.30624588]
[1740012090114,1.36956668,655.16,653.07,0.30624588]
[1740012090315,1.36956668,655.15,653.07,0.30624588]
[1740012090517,1.36956668,655.14,653.07,0.30624588]
[1740012090715,1.36956668,655.13,653.07,0.30624588]
[1740012090912,1.36956668,655.12,653.07,0.30624588]
[1740012091113,1.36956668,655.11,653.07,0.30624588]
[1740012091314,1.36956668,655.1,653.07,0.30624588]
[1740012091617,1.36956668,655.09,653.07,0.30624588]
[1740012091818,1.36956668,655.08,653.07,0.30624588]
[1740012092015,1.36956668,655.07,653.07,0.30624588]
[1740012092217,1.36956668,655.06,653.07,0.30624588]
[1740012092518,0.30525496,655.19,653.07,0.30624588]
[1740012092519,1.36956668,655.05,653.07,0.30624588]
[1740012092820,1.36956668,655.04,653.07,0.30624588]
[1740012093017,0.30525496,655.19,653.07,0.30624588]
[1740012093018,1.36956668,655.03,653.07,3.26384328]
[1740012093218,1.36956668,655.02,653.07,3.26384328]
[1740012093416,1.36956668,655.01,653.07,3.26384328]
[1740012093613,1.08887198,655.0,653.07,3.26384328]
[1740012093813,1.08887198,654.99,653.11,1.3565794]
[1740012094018,1.08887198,654.98,653.11,1.3565794]
[1740012094220,1.08887198,654.97,653.11,1.3565794]
[1740012094416,0.30525496,655.19,653.11,1.3565794]
[1740012094620,1.36767418,655.18,653.12,2.9575974]
[1740012094823,1.08702323,655.17,653.22,0.30617556]
[1740012095019,1.08702323,655.16,653.22,0.30617556]
[1740012095220,1.08702323,655.15,653.22,0.30617556]
[1740012095420,1.08702323,655.14,653.22,0.30617556]
[1740012095621,1.08702323,655.13,653.22,0.30617556]
[1740012095822,1.08702323,655.12,653.22,0.30617556]
[1740012096021,1.08702323,655.11,653.22,0.30617556]
[1740012096321,1.08702323,655.1,653.22,0.30617556]
[1740012096521,1.08702323,655.09,653.22,0.30617556]
[1740012096721,1.08702323,655.08,653.22,0.30617556]
[1740012096922,1.08702323,655.07,653.22,0.30617556]
[1740012097118,1.08702323,655.06,653.22,0.30617556]
[1740012097318,0.30525496,655.19,653.22,0.30617556]
[1740012097319,1.08702323,655.05,653.22,0.30617556]
[1740012097525,1.08702323,655.04,653.22,0.30617556]
[1740012097723,1.08702323,655.03,653.22,0.30617556]
[1740012097919,1.08702323,655.02,653.22,0.30617556]
[1740012098120,1.08702323,655.01,653.22,0.30617556]
[1740012098319,1.08702323,655.0,653.22,0.30617556]
[1740012098522,1.08702323,654.99,653.22,0.30617556]
[1740012098722,1.08702323,654.98,653.22,0.30617556]
[1740012098928,1.36772565,654.97,653.22,0.30617556]
[1740012099126,1.08702323,654.96,653.22,0.30617556]
[1740012099328,1.36772565,654.95,653.22,0.30617556]
[1740012099529,1.08702323,654.94,653.22,0.30617556]
[1740012099728,1.36727983,654.93,653.22,0.30617556]
[1740012099930,1.36727983,654.92,653.22,0.30617556]
[1740012100129,1.36727983,654.91,653.22,0.30617556]
[1740012100330,1.36727983,654.9,653.22,0.30617556]
[1740012100524,1.36727983,654.89,653.22,0.30617556]
[1740012100727,0.30525496,655.19,653.22,0.30617556]
[1740012100728,1.36727983,654.88,653.22,0.30617556]
[1740012100930,1.36727983,654.87,653.22,0.30617556]
[1740012101125,1.36727983,654.86,653.22,0.30617556]
[1740012101329,1.36727983,654.85,653.22,0.30617556]
[1740012101528,1.36727983,654.84,653.42,1.3565794]
[1740012101734,1.36755467,654.83,653.44,0.30607247]
[1740012101934,1.36755467,654.82,653.44,0.30607247]
[1740012102131,1.36755467,654.81,653.44,0.30607247]
[1740012102326,1.36755467,654.8,653.44,0.30607247]
[1740012102529,0.30525496,655.19,653.44,0.30607247]
[1740012102727,0.28076177,655.18,653.44,0.30607247]
[1740012102932,1.67292825,655.17,653.44,0.30607247]
[1740012103233,1.1326265,655.15,653.44,0.30607247]
[1740012103434,0.28076177,655.14,653.44,0.30607247]
[1740012103633,1.36766397,655.14,653.44,0.30607247]
[1740012103835,1.67294689,655.13,653.44,0.30607247]
[1740012104033,1.67295155,655.12,653.44,0.30607247]
[1740012104228,0.58605401,655.11,653.44,0.30607247]
[1740012104433,0.58605867,655.1,653.44,0.30607247]
[1740012104730,1.1326265,655.15,653.44,0.30607247]
[1740012104731,1.6729376,655.09,653.44,0.30607247]
[1740012104935,1.67294204,655.08,653.44,0.30607247]
[1740012105126,1.6729467,655.07,653.44,0.30607247]
[1740012105333,1.36763582,655.06,653.44,0.30607247]
[1740012105535,1.36763582,655.05,653.44,0.30607247]
[1740012105835,1.36763582,655.04,653.44,0.30607247]
[1740012106030,0.30531088,655.07,653.44,0.30607247]
[1740012106031,1.36763582,655.03,653.44,0.30607247]
[1740012106235,1.36763582,655.02,653.44,0.30607247]
[1740012106536,1.36763582,655.01,653.44,0.30607247]
[1740012106830,1.36763582,655.0,653.44,0.30607247]
[1740012107031,1.36763582,654.99,653.44,0.30607247]
[1740012107336,1.36763582,654.98,653.44,0.30607247]
[1740012107536,1.36763582,654.97,653.44,0.30607247]
[1740012107836,0.30531088,655.07,653.44,0.30607247]
[1740012107837,1.36763582,654.96,653.44,0.30607247]
[1740012108057,1.36763582,654.95,653.44,0.30607247]
[1740012108238,1.36763582,654.94,653.44,0.30607247]
[1740012108431,1.36763582,654.93,653.44,0.30607247]
[1740012108631,1.08687405,654.92,653.44,0.30607247]
[1740012108830,1.08687405,654.91,653.44,0.30607247]
[1740012109034,1.08687405,654.9,653.44,0.30607247]
[1740012109233,1.08687405,654.89,653.44,0.30607247]
[1740012109432,0.30531088,655.07,653.44,0.30607247]
[1740012109637,1.08741834,655.06,653.44,0.30607247]
[1740012109939,0.30531088,655.07,653.44,0.30607247]
[1740012109940,1.08741834,655.05,653.44,0.30607247]
[1740012110136,1.08737081,655.04,653.44,0.30607247]
[1740012110337,1.08737081,655.03,653.44,0.30607247]
[1740012110532,1.08737081,655.02,653.44,0.30607247]
[1740012110739,0.30531088,655.07,653.44,0.30607247]
[1740012110740,1.08737081,655.01,653.44,0.30607247]
[1740012110939,1.08737081,655.0,653.44,0.30607247]
[1740012111140,1.08737081,654.99,653.44,0.30607247]
[1740012111340,1.08737081,654.98,653.44,0.30607247]
[1740012111535,1.08737081,654.97,653.44,0.30607247]
[1740012111735,1.08737081,654.96,653.44,0.30607247]
[1740012111934,1.08737081,654.95,653.44,0.30607247]
[1740012112134,1.08737081,654.94,653.44,0.30607247]
[1740012112339,1.08737081,654.93,653.44,0.30607247]
[1740012112540,1.08737081,654.92,653.44,0.30607247]
[1740012112734,1.08737081,654.91,653.44,0.30607247]
[1740012112939,0.30531088,655.07,653.44,0.30607247]
[1740012112940,1.08737081,654.9,653.44,0.30607247]
[1740012113139,1.08737081,654.89,653.44,0.30607247]
[1740012113341,1.08737081,654.88,653.44,0.30607247]
[1740012113536,1.08737081,654.87,653.44,0.30607247]
[1740012113739,1.08737081,654.86,653.44,0.30607247]
[1740012113936,1.08737081,654.85,653.44,0.30607247]
[1740012114139,0.30531088,655.07,653.44,0.30607247]
[1740012114140,1.08789248,654.84,653.44,0.30607247]
[1740012114337,1.08789248,654.83,653.44,0.30607247]
[1740012114540,1.08789248,654.82,653.44,0.30607247]
[1740012114843,0.30531088,655.07,653.44,0.30607247]
[1740012115044,1.08794437,655.06,653.44,0.30607247]
[1740012115236,1.08794437,655.05,653.44,0.30607247]
[1740012115440,1.08794437,655.04,653.44,0.30607247]
[1740012115640,1.08794437,655.03,653.44,0.30607247]
[1740012115841,1.08794437,655.02,653.44,0.30607247]
[1740012116042,1.08794437,655.01,653.44,0.30607247]
[1740012116342,1.08794437,655.0,653.44,0.30607247]
[1740012116542,1.08794437,654.99,653.44,0.30607247]
[1740012116844,1.08794437,654.98,653.44,0.30607247]
[1740012117143,1.08794437,654.97,653.44,0.30607247]
[1740012117343,1.08794437,654.96,653.44,0.30607247]
[1740012117544,1.08794437,654.95,653.44,0.30607247]
[1740012117843,1.1326265,656.22,653.44,0.30607247]
[1740012118045,0.30483622,656.09,653.44,0.30607247]
[1740012118243,1.36967395,656.08,653.44,0.30607247]
[1740012118439,0.30490128,655.95,653.44,0.30607247]
[1740012118640,1.36967395,655.94,653.44,0.30607247]
[1740012118842,0.30496172,655.82,653.44,0.30607247]
[1740012119038,1.36967395,655.81,653.44,0.30607247]
[1740012119238,0.30501288,655.71,653.44,0.30607247]
[1740012119442,1.36967395,655.7,653.44,0.30607247]
[1740012119641,0.30506406,655.6,653.44,0.30607247]
[1740012119945,1.36967395,655.59,653.44,0.30607247]
[1740012120145,1.36967395,655.58,653.44,0.30607247]
[1740012120345,0.30506406,655.6,653.44,0.30607247]
[1740012120346,1.36967395,655.57,653.44,0.30607247]
[1740012120544,0.30506406,655.6,653.44,0.30607247]
[1740012120545,1.36967395,655.56,653.44,0.30607247]
[1740012120740,0.30509198,655.54,653.44,0.30607247]
[1740012120943,1.36967395,655.53,653.44,0.30607247]
[1740012121140,0.30510594,655.51,653.44,0.30607247]
[1740012121346,1.36967395,655.5,653.44,0.30607247]
[1740012121546,0.30511991,655.48,653.44,0.30607247]
[1740012121745,1.36967395,655.47,653.44,0.30607247]
[1740012121948,0.30513387,655.45,653.44,0.30607247]
[1740012122146,1.36967395,655.44,653.44,0.30607247]
[1740012122346,0.30514784,655.42,653.44,0.30607247]
[1740012122540,1.36967395,655.41,653.44,0.30607247]
[1740012122745,0.30516181,655.39,653.44,0.30607247]
[1740012122948,1.36967395,655.38,653.44,0.30607247]
[1740012123147,0.30517578,655.36,653.44,0.30607247]
[1740012123344,1.36967395,655.35,653.44,0.30607247]
[1740012123548,0.30517578,655.36,653.44,0.30607247]
[1740012123549,1.36967395,655.34,653.44,0.30607247]
[1740012123749,1.36967395,655.33,653.44,0.30607247]
[1740012123944,1.67486835,655.32,653.44,0.30607247]
[1740012124150,1.1326265,655.45,653.44,0.30607247]
[1740012124151,1.39428675,655.31,653.44,0.30607247]
[1740012124346,1.67498447,655.3,653.44,0.30607247]
[1740012124551,1.39429607,655.29,653.44,0.30607247]
[1740012124750,1.36978489,655.28,653.44,0.30607247]
[1740012124952,1.36978489,655.27,653.44,0.30607247]
[1740012125153,1.67500724,655.26,653.44,0.30607247]
[1740012125352,1.3943147,655.25,653.44,0.30607247]
[1740012125553,1.39431936,655.24,653.44,0.30607247]
[1740012125848,1.39432401,655.23,653.44,0.30607247]
[1740012126053,1.39432867,655.22,653.44,0.30607247]
[1740012126255,1.08908769,655.21,653.44,0.30607247]
[1740012126550,1.08908769,655.2,653.44,0.30607247]
[1740012126754,1.08908769,655.19,653.44,0.30607247]
[1740012126953,1.08908769,655.18,653.44,0.30607247]
[1740012127155,1.08908769,655.17,653.44,0.30607247]
[1740012127356,1.08908769,655.16,653.44,0.30607247]
[1740012127548,1.08908769,655.15,653.44,0.30607247]
[1740012127753,1.08908769,655.14,653.44,0.30607247]
[1740012127952,1.08908769,655.13,653.44,0.30607247]
[1740012128152,0.30524098,655.22,653.44,0.30607247]
[1740012128153,1.08908769,655.12,653.44,0.30607247]
[1740012128350,1.08908769,655.11,653.44,0.30607247]
[1740012128555,1.08908769,655.1,653.44,0.30607247]
[1740012128755,1.08908769,655.09,653.44,0.30607247]
[1740012128952,1.08908769,655.08,653.44,0.30607247]
[1740012129151,1.08908769,655.07,653.44,0.30607247]
[1740012129356,1.08908769,655.06,653.44,0.30607247]
[1740012129557,1.08908769,655.05,653.44,0.30607247]
[1740012129749,1.08908769,655.04,653.44,0.30607247]
[1740012129951,1.08908769,655.03,653.44,0.30607247]
[1740012130154,1.08908769,655.02,653.44,0.30607247]
[1740012130351,1.08908769,655.01,653.44,0.30607247]
[1740012130559,1.08908769,655.0,653.44,0.30607247]
[1740012130751,1.08908769,654.99,653.44,0.30607247]
[1740012130953,1.08908769,654.98,653.44,0.30607247]
[1740012131151,1.08908769,654.97,653.44,0.30607247]
[1740012131352,1.08908769,654.96,653.44,0.30607247]
[1740012131552,1.08908769,654.95,653.44,0.30607247]
[1740012131852,1.08908769,654.94,653.44,0.30607247]
[1740012132053,1.08908769,654.93,653.44,0.30607247]
[1740012132257,1.08908769,654.92,653.44,0.30607247]
[1740012132459,1.08908769,654.91,653.44,0.30607247]
[1740012132655,1.08908769,654.9,653.44,0.30607247]
[1740012132853,1.08908769,654.89,653.44,0.30607247]
[1740012133060,1.08908769,654.88,653.44,0.30607247]
[1740012133255,0.30524098,655.22,653.44,0.30607247]
[1740012133256,1.08908769,654.87,653.44,0.30607247]
[1740012133460,1.08908769,654.86,653.44,0.30607247]
[1740012133656,1.08908769,654.85,653.44,0.30607247]
[1740012133861,1.08908769,654.84,653.44,0.30607247]
[1740012134063,0.30524098,655.22,653.44,0.30607247]
[1740012134255,1.09330175,655.21,653.44,0.30607247]
[1740012134460,1.09330175,655.2,653.44,0.30607247]
[1740012134658,1.09330175,655.19,653.44,0.30607247]
[1740012134862,1.09330175,655.18,653.44,0.30607247]
[1740012135056,1.09330175,655.17,653.44,0.30607247]
[1740012135256,1.09330175,655.16,653.44,0.30607247]
[1740012135463,1.09330175,655.15,653.44,0.30607247]
[1740012135763,0.30524098,655.22,653.44,0.30607247]
[1740012135764,1.09330175,655.14,653.44,0.30607247]
[1740012136058,1.09330175,655.13,653.44,0.30607247]
[1740012136362,1.09330175,655.12,653.44,0.30607247]
[1740012136559,1.09330175,655.11,653.44,0.30607247]
[1740012136760,1.09330175,655.1,653.44,0.30607247]
[1740012137061,1.09330175,655.09,653.44,0.30607247]
[1740012137258,1.09330175,655.08,653.44,0.30607247]
[1740012137457,1.09330175,655.07,653.44,0.30607247]
[1740012137663,1.09330175,655.06,653.44,0.30607247]
[1740012137959,1.09330175,655.05,653.44,0.30607247]
[1740012138162,1.09330175,655.04,653.44,0.30607247]
[1740012138363,1.09330175,655.03,653.44,0.30607247]
[1740012138562,1.09330175,655.02,653.44,0.30607247]
[1740012138862,1.0923349,655.01,653.44,0.30607247]
[1740012139163,1.0923349,655.0,653.44,0.30607247]
[1740012139360,1.0923349,654.99,653.44,0.30607247]
[1740012139557,1.0923349,654.98,653.44,0.30607247]